bitfinex-derivatives/quotes_BTCF0:USTF0_20250716
["timestamp","ask_amount","ask_price","bid_price","bid_amount"]
[1752694047625,0.1674237,119380.0,119370.0,0.0002]
[1752694047825,0.1674378,119370.0,119360.0,0.14365158]
[1752694048027,1.12745476,119370.0,119360.0,0.14580158]
[1752694048529,1.12733476,119370.0,119360.0,0.14580158]
[1752694049225,1.12729476,119370.0,119360.0,0.31325338]
[1752694049426,1.12725476,119370.0,119360.0,0.32213331]
[1752694050831,1.12725476,119370.0,119360.0,0.32613331]
[1752694051126,1.12725476,119370.0,119360.0,0.15868151]
[1752694051333,1.12725476,119370.0,119360.0,0.32613331]
[1752694051831,0.52117476,119370.0,119360.0,0.15868151]
[1752694052131,1.12705476,119370.0,119360.0,0.15868151]
[1752694052327,0.7733178,119370.0,119360.0,0.15868151]
[1752694052630,1.12705476,119370.0,119360.0,0.26612173]
[1752694053632,0.52117476,119370.0,119360.0,0.26612173]
[1752694053832,1.12697476,119370.0,119360.0,0.26612173]
[1752694054535,1.12697476,119370.0,119360.0,0.09866993]
[1752694055031,1.12697476,119370.0,119360.0,0.08979]
[1752694057031,1.12697476,119370.0,119360.0,0.05672]
[1752694060836,1.12697476,119370.0,119360.0,0.08744]
[1752694061031,1.12697476,119370.0,119360.0,0.08979]
[1752694064640,0.7732378,119370.0,119360.0,0.08979]
[1752694065841,1.12697476,119370.0,119360.0,0.08979]
[1752694066142,1.12713476,119370.0,119360.0,0.2572418]
[1752694067636,1.12713476,119370.0,119360.0,0.3024075]
[1752694068444,1.12713476,119370.0,119360.0,0.08979]
[1752694068846,0.7733978,119370.0,119360.0,0.08979]
[1752694069045,1.12713476,119370.0,119360.0,0.08979]
[1752694069644,0.7733978,119370.0,119360.0,0.11508343]
[1752694069852,1.12713476,119370.0,119360.0,0.11508343]
[1752694070149,0.1674518,119360.0,119350.0,0.0002]
[1752694070349,0.1674798,119340.0,119330.0,0.05651389]
[1752694070548,1.12713676,119340.0,119330.0,0.04763]
[1752694070743,2.28541676,119340.0,119330.0,0.10764158]
[1752694071150,2.28541676,119340.0,119330.0,0.11233158]
[1752694071949,2.28541676,119340.0,119330.0,0.05232]
[1752694072153,1.67949676,119340.0,119330.0,0.05232]
[1752694072354,2.28565676,119340.0,119330.0,0.06115719]
[1752694072555,2.35357061,119340.0,119330.0,0.05232]
[1752694073658,1.74753061,119340.0,119330.0,0.05232]
[1752694073854,2.35353061,119340.0,119330.0,0.05232]
[1752694074653,1.99979365,119340.0,119330.0,0.05232]
[1752694074854,2.35353061,119340.0,119330.0,0.05232]
[1752694075050,2.35353061,119340.0,119330.0,0.04763]
[1752694075362,0.1674939,119330.0,119320.0,0.12111836]
[1752694075560,0.52123086,119330.0,119320.0,0.12111836]
[1752694076760,0.52123086,119330.0,119320.0,0.06110678]
[1752694077762,0.52123086,119330.0,119320.0,0.12111836]
[1752694078765,0.52123086,119330.0,119320.0,0.13635836]
[1752694078966,0.52123086,119330.0,119320.0,0.32270626]
[1752694079466,0.52123086,119330.0,119320.0,0.26269468]
[1752694080467,0.7722939,119330.0,119320.0,0.32570626]
[1752694080766,0.7722939,119330.0,119320.0,0.26569468]
[1752694081265,0.7722939,119330.0,119320.0,0.32570626]
[1752694081761,0.7722939,119330.0,119320.0,0.15819836]
[1752694081762,1.12603086,119330.0,119320.0,0.15819836]
[1752694082063,1.12603086,119330.0,119320.0,0.06301158]
[1752694082263,1.66227392,119330.0,119300.0,0.06470158]
[1752694082565,0.52125896,119310.0,119300.0,0.10764158]
[1752694082769,0.52125896,119310.0,119300.0,0.04763]
[1752694083066,0.167536,119300.0,119290.0,0.13951586]
[1752694083262,0.52127296,119300.0,119290.0,0.09723428]
[1752694083964,0.52127296,119300.0,119290.0,0.26478428]
[1752694084164,0.52127296,119300.0,119290.0,0.28113428]
[1752694084470,1.12623296,119300.0,119290.0,0.28113428]
[1752694085458,0.1675501,119290.0,119280.0,0.11233158]
[1752694085664,0.52128706,119290.0,119280.0,0.0864]
[1752694086963,0.52128706,119290.0,119280.0,0.05481]
[1752694087567,1.12648706,119290.0,119280.0,0.05481]
[1752694088467,1.12648706,119290.0,119280.0,0.07729497]
[1752694089262,1.12648706,119290.0,119280.0,0.24685907]
[1752694089263,1.12748706,119290.0,119280.0,0.24685907]
[1752694089471,1.12748706,119290.0,119280.0,0.07929497]
[1752694090274,1.12748706,119290.0,119280.0,0.24685907]
[1752694090466,0.1685501,119290.0,119280.0,0.26209907]
[1752694090666,1.12724706,119290.0,119280.0,0.27844907]
[1752694091172,0.1685501,119290.0,119280.0,0.27844907]
[1752694091372,1.12720706,119290.0,119280.0,0.27844907]
[1752694092565,1.12720706,119290.0,119280.0,0.09453497]
[1752694092872,1.12720706,119290.0,119280.0,0.07680497]
[1752694093572,1.12720706,119290.0,119280.0,0.24436907]
[1752694095273,1.12720706,119290.0,119280.0,0.07680497]
[1752694095472,1.12720706,119290.0,119280.0,0.24436907]
[1752694095671,1.12720706,119290.0,119280.0,0.25960907]
[1752694096173,1.12620706,119290.0,119280.0,0.25760907]
[1752694096774,1.12620706,119290.0,119280.0,0.09004497]
[1752694097574,0.52128706,119290.0,119280.0,0.09004497]
[1752694097776,0.1675501,119290.0,119280.0,0.27611907]
[1752694097977,0.52128706,119290.0,119280.0,0.08607]
[1752694098277,1.12628706,119290.0,119280.0,0.10855114]
[1752694098467,0.7725501,119290.0,119280.0,0.09234114]
[1752694098669,1.12628706,119290.0,119280.0,0.09234114]
[1752694099070,1.12628706,119290.0,119280.0,0.25990524]
[1752694099470,1.12628706,119290.0,119280.0,0.06986]
[1752694099874,0.7725501,119290.0,119280.0,0.06986]
[1752694100075,1.12628706,119290.0,119280.0,0.06986]
[1752694100679,1.12628706,119290.0,119280.0,0.09236207]
[1752694100976,0.7725501,119290.0,119280.0,0.25992617]
[1752694101177,1.12628706,119290.0,119280.0,0.09236207]
[1752694101781,1.12628706,119290.0,119280.0,0.25992617]
[1752694101973,1.12628706,119290.0,119280.0,0.09236207]
[1752694103181,1.12628706,119290.0,119280.0,0.25992617]
[1752694103480,1.12628706,119290.0,119280.0,0.09236207]
[1752694103677,1.12628706,119290.0,119280.0,0.25992617]
[1752694103876,0.1675641,119280.0,119270.0,0.0002]
[1752694104076,0.1675781,119270.0,119260.0,0.10539855]
[1752694104276,1.12635506,119270.0,119260.0,0.10519855]
[1752694104475,1.12635506,119270.0,119260.0,0.11638502]
[1752694104878,1.12635506,119270.0,119260.0,0.07142855]
[1752694105684,1.12635506,119270.0,119260.0,0.11638502]
[1752694106785,0.83802569,119270.0,119260.0,0.11638502]
[1752694106981,1.19176265,119270.0,119260.0,0.13164502]
[1752694107183,1.19176265,119270.0,119260.0,0.14785502]
[1752694107381,1.19176265,119270.0,119250.0,0.26026337]
[1752694107382,0.1675922,119260.0,119250.0,0.0002]
[1752694107684,0.1676062,119250.0,119240.0,0.12815158]
[1752694107884,1.12638316,119250.0,119240.0,0.05268]
[1752694108288,0.7726462,119250.0,119240.0,0.05268]
[1752694108482,1.12638316,119250.0,119240.0,0.0614286]
[1752694110584,0.52134316,119250.0,119240.0,0.2628189]
[1752694110782,1.12642316,119250.0,119240.0,0.2628189]
[1752694111288,0.1676203,119240.0,119230.0,0.0002]
[1752694111584,0.1676344,119230.0,119220.0,0.08665]
[1752694111784,0.7727144,119230.0,119220.0,0.31410998]
[1752694112486,0.7727144,119230.0,119220.0,0.32293195]
[1752694114188,0.1676344,119230.0,119220.0,0.32293195]
[1752694114388,0.7727144,119230.0,119220.0,0.32293195]
[1752694116389,0.7727144,119230.0,119220.0,0.61665733]
[1752694116780,1.12645136,119230.0,119220.0,0.05686197]
[1752694116984,1.12645136,119230.0,119220.0,0.09527197]
[1752694117384,1.12645136,119230.0,119220.0,0.09727197]
[1752694117584,1.12645136,119230.0,119220.0,0.26492037]
[1752694117987,1.12645136,119230.0,119220.0,0.1273127]
[1752694118391,1.12645136,119230.0,119220.0,0.11849073]
[1752694118787,1.12645136,119230.0,119220.0,0.08472073]
[1752694120485,1.12645136,119230.0,119220.0,0.25236913]
[1752694121289,1.12645136,119230.0,119220.0,0.26120302]
[1752694121887,1.12645136,119230.0,119220.0,0.27646302]
[1752694123290,1.12645136,119230.0,119220.0,0.29497302]
[1752694123291,0.1676344,119230.0,119220.0,0.29497302]
[1752694123491,0.7726744,119230.0,119220.0,0.64870998]
[1752694123990,0.7747544,119230.0,119220.0,0.29497302]
[1752694124996,1.12849136,119230.0,119220.0,0.29497302]
[1752694125195,0.7747544,119230.0,119220.0,0.29497302]
[1752694125796,1.12849136,119230.0,119220.0,0.12732462]
[1752694125996,0.52137136,119230.0,119220.0,0.29497302]
[1752694126196,1.12893136,119230.0,119220.0,0.29497302]
[1752694126392,0.7751944,119230.0,119220.0,0.29497302]
[1752694126792,0.7751944,119230.0,119220.0,0.64870998]
[1752694126992,0.7751944,119230.0,119220.0,0.29497302]
[1752694127192,1.12893136,119230.0,119220.0,0.29497302]
[1752694127898,0.7751944,119230.0,119220.0,0.29497302]
[1752694128097,1.12893136,119230.0,119220.0,0.29497302]
[1752694130399,1.12893136,119230.0,119220.0,0.17234969]
[1752694131099,1.12893136,119230.0,119220.0,0.08008073]
[1752694131301,1.12893136,119230.0,119220.0,0.03204073]
[1752694133001,1.12893136,119230.0,119220.0,0.08306073]
[1752694133894,0.7751944,119230.0,119220.0,0.08306073]
[1752694134100,1.12893136,119230.0,119220.0,0.11770073]
[1752694134602,0.7751944,119230.0,119220.0,0.11770073]
[1752694134806,1.12893136,119230.0,119220.0,0.10120073]
[1752694135303,1.12893136,119230.0,119220.0,0.1462258]
[1752694135499,0.7751944,119230.0,119220.0,0.1462258]
[1752694135698,1.12893136,119230.0,119220.0,0.3303742]
[1752694137309,1.12893136,119230.0,119220.0,0.30033347]
[1752694137999,1.12893136,119230.0,119220.0,0.60904536]
[1752694138000,0.7774744,119230.0,119220.0,0.60904536]
[1752694138405,0.7774744,119230.0,119220.0,0.2553084]
[1752694140307,1.13121136,119230.0,119220.0,0.2553084]
[1752694140806,0.7774744,119230.0,119220.0,0.2553084]
[1752694141307,0.7774744,119230.0,119220.0,0.31531998]
[1752694141606,1.13121136,119230.0,119220.0,0.31531998]
[1752694142608,1.13105136,119230.0,119220.0,0.31531998]
[1752694142908,1.13109136,119230.0,119220.0,0.31531998]
[1752694143208,0.52141136,119230.0,119220.0,0.31531998]
[1752694143409,1.13069136,119230.0,119220.0,0.31531998]
[1752694144311,0.7769544,119230.0,119220.0,0.31531998]
[1752694144502,1.13069136,119230.0,119220.0,0.31531998]
[1752694147212,0.7769544,119230.0,119220.0,0.31531998]
[1752694147411,1.13069136,119230.0,119220.0,0.31531998]
[1752694147909,0.7759543,119230.0,119220.0,0.66905694]
[1752694148106,0.7759543,119230.0,119220.0,0.66938838]
[1752694148305,0.7759543,119230.0,119220.0,0.60904536]
[1752694148708,0.7759543,119230.0,119220.0,0.2553084]
[1752694148908,0.7759543,119230.0,119220.0,0.60904536]
[1752694149112,0.1676743,119230.0,119220.0,0.2553084]
[1752694149312,0.7760343,119230.0,119220.0,0.60904536]
[1752694149813,0.7760343,119230.0,119220.0,0.66938357]
[1752694150414,0.7760343,119230.0,119220.0,0.68829235]
[1752694151012,0.7760343,119230.0,119220.0,0.33455539]
[1752694151313,0.7760343,119230.0,119220.0,0.98289235]
[1752694153219,0.1676743,119230.0,119220.0,0.98289235]
[1752694153413,0.7745543,119230.0,119220.0,0.98289235]
[1752694154615,0.60692,119230.0,119220.0,0.98289235]
[1752694154816,0.7745543,119230.0,119220.0,0.62915539]
[1752694155016,4e-05,119230.0,119220.0,1.15064434]
[1752694155211,4e-05,119250.0,119240.0,0.2092603]
[1752694155418,0.60628,119250.0,119240.0,0.65201335]
[1752694155617,0.60628,119250.0,119240.0,0.60677726]
[1752694156126,0.60628,119250.0,119240.0,0.65198961]
[1752694156426,0.60628,119250.0,119240.0,0.60677726]
[1752694156825,4e-05,119250.0,119240.0,0.81970856]
[1752694157032,0.1676462,119250.0,119240.0,0.77449726]
[1752694157231,0.1676462,119250.0,119240.0,0.81969484]
[1752694157628,0.1686462,119250.0,119240.0,0.81969484]
[1752694159328,0.1686462,119250.0,119240.0,0.83812031]
[1752694160235,0.1686462,119250.0,119240.0,1.13272031]
[1752694160734,0.1686462,119250.0,119240.0,1.08752273]
[1752694161332,0.1686462,119250.0,119240.0,1.13268497]
[1752694161831,0.1686462,119250.0,119240.0,1.08752273]
[1752694162133,0.1686462,119250.0,119240.0,1.13268088]
[1752694162331,0.1686462,119250.0,119240.0,0.77894392]
[1752694162532,0.1686462,119250.0,119240.0,1.13268088]
[1752694163427,0.1686462,119250.0,119240.0,1.08752273]
[1752694164131,0.00104,119250.0,119240.0,1.08752273]
[1752694165234,0.1686462,119250.0,119240.0,1.08752273]
[1752694165636,0.8147791,119260.0,119250.0,0.3629404]
[1752694165837,0.9353982,119260.0,119250.0,0.41207262]
[1752694166230,0.8889182,119260.0,119250.0,0.41207262]
[1752694166931,0.7728722,119260.0,119250.0,0.76580958]
[1752694167235,0.7758722,119260.0,119250.0,0.76680958]
[1752694168133,0.1705922,119260.0,119250.0,0.76680958]
[1752694168333,0.7758722,119260.0,119250.0,0.76680958]
[1752694169033,0.7758722,119260.0,119250.0,0.41307262]
[1752694169336,0.7896322,119260.0,119250.0,0.76580958]
[1752694169537,0.7896322,119260.0,119250.0,0.41207262]
[1752694169934,0.62204,119260.0,119250.0,0.76580958]
[1752694170736,0.62204,119260.0,119250.0,0.41207262]
[1752694170928,0.7896322,119260.0,119250.0,0.41207262]
[1752694171134,0.8061122,119260.0,119250.0,0.51441968]
[1752694171336,1.20632916,119260.0,119250.0,0.24887129]
[1752694171633,1.20632916,119260.0,119250.0,0.20227129]
[1752694171831,1.20632916,119260.0,119250.0,0.24887129]
[1752694173131,1.20632916,119260.0,119250.0,0.25118129]
[1752694174138,0.8525922,119260.0,119250.0,0.25118129]
[1752694174331,1.20632916,119260.0,119250.0,0.25118129]
[1752694175340,0.8525922,119260.0,119250.0,0.25118129]
[1752694175540,1.20632916,119260.0,119250.0,0.25118129]
[1752694177140,1.20632916,119260.0,119250.0,0.29633892]
[1752694177636,1.20632916,119260.0,119250.0,0.24742892]
[1752694177839,1.20632916,119260.0,119250.0,0.24742902]
[1752694178336,0.8524722,119260.0,119250.0,0.29402902]
[1752694178640,1.20620916,119260.0,119250.0,0.32828902]
[1752694179844,1.20624916,119260.0,119250.0,0.32828902]
[1752694180338,1.20624916,119260.0,119250.0,0.07982272]
[1752694180543,1.20624916,119260.0,119250.0,0.24742902]
[1752694180945,1.20624916,119260.0,119250.0,0.07982272]
[1752694181147,1.20624916,119260.0,119250.0,0.24742902]
[1752694182446,1.20624916,119260.0,119250.0,0.29402902]
[1752694182647,1.20624916,119260.0,119250.0,0.26392393]
[1752694184245,1.20624916,119260.0,119250.0,0.27908109]
[1752694185047,1.20624916,119260.0,119250.0,0.31081109]
[1752694185247,1.20624916,119260.0,119250.0,0.31319109]
[1752694188951,0.8524323,119260.0,119250.0,0.66692805]
[1752694189354,0.8524323,119260.0,119250.0,0.31319109]
[1752694189750,0.68484,119260.0,119250.0,0.31319109]
[1752694190050,0.62188,119260.0,119250.0,0.66692805]
[1752694190754,0.63743,119260.0,119250.0,0.66692805]
[1752694191452,0.63743,119260.0,119250.0,0.31319109]
[1752694191651,0.63743,119260.0,119250.0,0.66692805]
[1752694191853,0.8518023,119260.0,119250.0,0.31319109]
[1752694192652,1.20553926,119260.0,119250.0,0.31319109]
[1752694195060,0.8518023,119260.0,119250.0,0.31319109]
[1752694196964,1.20553926,119260.0,119250.0,0.31319109]
[1752694197562,0.8518023,119260.0,119250.0,0.31319109]
[1752694197762,1.20553926,119260.0,119250.0,0.31319109]
[1752694198359,1.20553926,119260.0,119250.0,0.2528763]
[1752694198563,0.68421,119260.0,119250.0,0.31319109]
[1752694198763,1.20553946,119260.0,119250.0,0.31319109]
[1752694199063,1.20553946,119260.0,119250.0,0.2528763]
[1752694200263,0.8518025,119260.0,119250.0,0.2211463]
[1752694200463,1.20553946,119260.0,119250.0,0.1745163]
[1752694200667,1.20553946,119260.0,119250.0,0.23483109]
[1752694201155,1.20553946,119260.0,119250.0,0.06722479]
[1752694201359,0.2071066,119250.0,119240.0,0.13154333]
[1752694201555,0.1831706,119240.0,119230.0,0.29470917]
[1752694201760,0.1831706,119240.0,119230.0,0.29450917]
[1752694201761,1.16577756,119240.0,119230.0,0.29450917]
[1752694201962,1.16577756,119240.0,119230.0,0.2192561]
[1752694202759,1.16577756,119240.0,119230.0,0.02406]
[1752694202959,0.2071346,119230.0,119220.0,0.2194681]
[1752694203161,0.56087156,119230.0,119220.0,0.2035081]
[1752694204368,0.56187156,119230.0,119220.0,0.2302081]
[1752694205370,0.56087156,119230.0,119220.0,0.2262081]
[1752694205570,0.56087156,119230.0,119220.0,0.2292081]
[1752694207977,0.56087156,119230.0,119220.0,0.27436156]
[1752694208372,0.56087156,119230.0,119220.0,0.05509346]
[1752694208570,1.72027156,119230.0,119220.0,0.08519249]
[1752694208870,0.1676487,119220.0,119210.0,0.0002]
[1752694209071,0.1676628,119210.0,119200.0,0.05035346]
[1752694209275,0.52139976,119210.0,119200.0,0.005]
[1752694209670,0.58741229,119210.0,119200.0,0.005]
[1752694210076,0.75518829,119210.0,119200.0,0.005]
[1752694210673,0.58741229,119210.0,119200.0,0.005]
[1752694210874,1.10892525,119210.0,119200.0,0.005]
[1752694211373,1.42892525,119210.0,119200.0,0.005]
[1752694211574,1.42892525,119210.0,119200.0,0.006]
[1752694211774,1.43769617,119210.0,119200.0,0.006]
[1752694214176,0.1676769,119200.0,119190.0,0.0002]
[1752694214474,0.1676909,119190.0,119180.0,0.0002]
[1752694214677,0.167505,119180.0,119170.0,0.05427281]
[1752694214877,1.932145,119180.0,119170.0,0.05427281]
[1752694215172,2.28588196,119180.0,119170.0,0.05427281]
[1752694216879,1.68092196,119180.0,119170.0,0.06286622]
[1752694217180,2.28584196,119180.0,119170.0,0.06286622]
[1752694217979,1.68092196,119180.0,119170.0,0.23058532]
[1752694218182,2.28588196,119180.0,119170.0,0.06286622]
[1752694219172,2.28588196,119180.0,119170.0,0.05427281]
[1752694222182,2.28592196,119180.0,119170.0,0.05427281]
[1752694222576,1.68096196,119180.0,119170.0,0.2628706]
[1752694222781,1.932305,119180.0,119170.0,0.2652306]
[1752694223681,2.28604196,119180.0,119170.0,0.2652306]
[1752694223887,2.28604196,119180.0,119170.0,0.0631215]
[1752694224486,2.28604196,119180.0,119170.0,0.05427281]
[1752694224680,2.28604196,119180.0,119170.0,0.04973281]
[1752694224892,2.28604196,119180.0,119170.0,0.00088281]
[1752694225188,2.30291785,119180.0,119170.0,0.00088281]
[1752694225684,2.30491785,119180.0,119170.0,0.01488281]
[1752694226287,2.31348284,119180.0,119170.0,0.01488281]
[1752694227993,2.31148284,119180.0,119170.0,0.00088281]
[1752694228297,2.31248284,119180.0,119170.0,0.00288281]
[1752694230198,0.1677331,119160.0,119150.0,0.06528]
[1752694230392,0.1677472,119150.0,119140.0,0.1190421]
[1752694230592,0.52148416,119150.0,119140.0,0.08948864]
[1752694230790,0.52148416,119150.0,119140.0,0.02401]
[1752694230999,0.1677613,119140.0,119130.0,0.10270087]
[1752694231195,0.52149826,119140.0,119130.0,0.05754741]
[1752694232196,0.58859505,119140.0,119130.0,0.00869741]
[1752694232392,0.1677754,119130.0,119120.0,0.09874346]
[1752694232590,1.12771236,119130.0,119120.0,0.05339]
[1752694232794,2.28791236,119130.0,119120.0,0.05339]
[1752694233199,2.28791236,119130.0,119120.0,0.06215704]
[1752694234500,2.28791236,119130.0,119120.0,0.00876704]
[1752694234698,0.1677893,119120.0,119110.0,0.35043966]
[1752694234901,0.1677893,119120.0,119110.0,0.38462966]
[1752694234902,0.52152626,119120.0,119110.0,0.38462966]
[1752694235497,0.35373696,119120.0,119110.0,0.38462966]
[1752694235704,1.78249564,119130.0,119120.0,0.2555694]
[1752694236003,2.38893564,119130.0,119120.0,0.06982]
[1752694236305,2.38893564,119130.0,119120.0,0.05339]
[1752694236510,2.38893564,119130.0,119120.0,0.06230065]
[1752694236697,2.38993564,119130.0,119120.0,0.07030065]
[1752694237802,2.38997564,119130.0,119120.0,0.07030065]
[1752694238401,2.38997564,119130.0,119110.0,0.04535346]
[1752694238402,0.1677899,119120.0,119110.0,0.04535346]
[1752694238597,0.1677899,119120.0,119100.0,0.09298]
[1752694238598,0.167804,119110.0,119100.0,0.09298]
[1752694238799,0.89154096,119110.0,119100.0,0.1228443]
[1752694239004,0.537804,119110.0,119100.0,0.09278]
[1752694239304,0.89154096,119110.0,119100.0,0.09278]
[1752694239701,1.49870096,119110.0,119100.0,0.09278]
[1752694239900,1.50166096,119110.0,119100.0,0.006]
[1752694240203,1.51162096,119110.0,119100.0,0.006]
[1752694242207,1.52016057,119110.0,119100.0,0.006]
[1752694243206,0.1678185,119100.0,119090.0,0.0002]
[1752694243398,0.1678466,119080.0,119070.0,0.0858143]
[1752694243704,0.7764066,119080.0,119070.0,0.07218]
[1752694243910,1.13014356,119080.0,119070.0,0.2400405]
[1752694244907,1.13014356,119080.0,119070.0,0.2555405]
[1752694245503,0.79358517,119080.0,119070.0,0.2555405]
[1752694245809,0.79358517,119080.0,119070.0,0.08768]
[1752694246004,1.14732213,119080.0,119070.0,0.08768]
[1752694246210,0.79758517,119080.0,119070.0,0.08868]
[1752694246414,1.15132213,119080.0,119070.0,0.08868]
[1752694247211,0.79758517,119080.0,119070.0,0.2565402]
[1752694247409,0.2097998,119090.0,119080.0,0.3386933]
[1752694247711,1.17573676,119090.0,119080.0,0.08695]
[1752694247914,1.17573676,119090.0,119080.0,0.254796]
[1752694248612,0.8219998,119090.0,119080.0,0.254796]
[1752694248804,0.172839,119090.0,119080.0,0.255796]
[1752694249009,0.785839,119090.0,119080.0,0.60953296]
[1752694249212,0.172839,119090.0,119080.0,0.255796]
[1752694249520,0.785839,119090.0,119080.0,0.255796]
[1752694250313,0.785879,119090.0,119080.0,0.255796]
[1752694250511,0.785879,119090.0,119080.0,0.60953296]
[1752694250811,0.786439,119090.0,119080.0,0.60953296]
[1752694251614,0.786439,119090.0,119080.0,0.255796]
[1752694252109,1.14017596,119090.0,119080.0,0.04928]
[1752694252512,0.786439,119090.0,119080.0,0.04928]
[1752694252710,0.2481463,119080.0,119070.0,0.2505114]
[1752694252912,0.2481463,119080.0,119070.0,0.2962657]
[1752694253110,0.2481463,119080.0,119070.0,0.34141916]
[1752694253515,0.8618663,119080.0,119070.0,0.34141916]
[1752694254614,0.8618663,119080.0,119070.0,0.38969916]
[1752694255008,0.8639063,119080.0,119070.0,0.39069916]
[1752694255204,0.8639063,119080.0,119070.0,0.18087986]
[1752694255205,2.0247863,119080.0,119070.0,0.18087986]
[1752694255410,2.37852326,119080.0,119070.0,0.1357264]
[1752694255614,2.0247863,119080.0,119070.0,0.3035868]
[1752694255816,2.0253063,119080.0,119070.0,0.3035868]
[1752694256219,1.4110663,119080.0,119070.0,0.34874026]
[1752694256415,2.0253063,119080.0,119070.0,0.34874026]
[1752694256817,1.4110663,119080.0,119070.0,0.34874026]
[1752694257019,2.37896326,119080.0,119070.0,0.3035868]
[1752694257519,1.4110663,119080.0,119070.0,0.1357264]
[1752694257820,2.09202473,119080.0,119070.0,0.1357264]
[1752694258213,1.47798473,119080.0,119070.0,0.3035868]
[1752694258413,2.09194473,119080.0,119070.0,0.3035868]
[1752694259415,2.44568169,119080.0,119070.0,0.3035868]
[1752694259615,2.44568169,119080.0,119070.0,0.1357264]
[1752694260019,2.44568169,119080.0,119070.0,0.0537764]
[1752694260207,2.09194473,119080.0,119070.0,0.23172596]
[1752694260409,2.44568169,119080.0,119070.0,0.23672596]
[1752694260714,2.44568169,119080.0,119070.0,0.06886556]
[1752694260909,2.44568169,119080.0,119070.0,0.23672556]
[1752694261719,2.44568169,119080.0,119070.0,0.28500556]
[1752694261925,2.09194473,119080.0,119070.0,0.28500556]
[1752694262115,2.44568169,119080.0,119070.0,0.11714556]
[1752694262313,2.44568169,119080.0,119070.0,0.06886556]
[1752694263021,2.09194473,119080.0,119070.0,0.23672546]
[1752694263217,2.44568169,119080.0,119070.0,0.06886556]
[1752694263714,2.44568169,119080.0,119070.0,0.06386556]
[1752694263920,2.44568169,119080.0,119070.0,0.0187121]
[1752694264115,2.27783539,119080.0,119060.0,0.0590751]
[1752694264318,0.57609736,119070.0,119060.0,0.0002]
[1752694264619,0.1823945,119060.0,119050.0,0.0002]
[1752694264818,0.1824086,119050.0,119040.0,0.05348]
[1752694265014,1.46158556,119050.0,119040.0,0.05328]
[1752694265425,1.1025086,119050.0,119040.0,0.2548526]
[1752694265618,0.1768235,119060.0,119050.0,0.2305385]
[1752694265921,0.7926235,119060.0,119050.0,0.6386961]
[1752694266121,0.1678886,119050.0,119040.0,0.0002]
[1752694266323,0.1824227,119040.0,119030.0,0.05596]
[1752694266521,1.15363966,119040.0,119030.0,0.05576]
[1752694266716,0.53615966,119040.0,119030.0,0.2393668]
[1752694266923,1.15403966,119040.0,119030.0,0.2548668]
[1752694267125,0.7947227,119040.0,119030.0,0.08695]
[1752694267320,0.8003027,119040.0,119030.0,0.08695]
[1752694267521,0.8003027,119040.0,119030.0,0.09946167]
[1752694267918,1.15403966,119040.0,119030.0,0.09946167]
[1752694268120,1.15403966,119040.0,119030.0,0.26737847]
[1752694268121,0.8003027,119040.0,119030.0,0.26737847]
[1752694268319,0.7952027,119040.0,119030.0,0.62111543]
[1752694268518,0.1719027,119040.0,119030.0,0.79013143]
[1752694268922,0.1719027,119040.0,119030.0,0.85310551]
[1752694269422,0.1719027,119040.0,119030.0,0.91316822]
[1752694269817,0.1719027,119040.0,119030.0,0.49645718]
[1752694270213,0.1719027,119040.0,119030.0,0.32844118]
[1752694270417,0.59755374,119040.0,119030.0,0.16052438]
[1752694270619,0.60313374,119040.0,119030.0,0.14801271]
[1752694271021,0.60313374,119040.0,119030.0,0.02498]
[1752694271618,0.60313374,119040.0,119030.0,0.05510188]
[1752694272224,0.60313374,119040.0,119030.0,0.07940188]
[1752694273629,0.60313374,119040.0,119030.0,0.08415188]
[1752694273924,0.60313374,119040.0,119030.0,0.07940188]
[1752694274329,0.60313374,119040.0,119030.0,0.05510188]
[1752694274524,0.60313374,119040.0,119030.0,0.03112188]
[1752694275433,0.7144387,119040.0,119030.0,0.02554188]
[1752694275633,1.13114974,119040.0,119030.0,0.04810893]
[1752694275825,0.1679168,119030.0,119020.0,0.0002]
[1752694276037,0.1679309,119020.0,119010.0,0.0002]
[1752694276228,0.1677451,119010.0,119000.0,0.11853271]
[1752694276523,1.20273614,119010.0,119000.0,0.05372]
[1752694276831,1.20273614,119010.0,119000.0,0.005]
[1752694278141,1.20473614,119010.0,119000.0,0.009]
[1752694279335,0.1679737,118990.0,118980.0,0.08875271]
[1752694279637,1.20324474,118990.0,118980.0,0.28152051]
[1752694279839,1.20324474,118990.0,118980.0,0.11353271]
[1752694280134,1.20324474,118990.0,118980.0,0.12626197]
[1752694280643,1.20324474,118990.0,118980.0,0.06144926]
[1752694280644,1.20624474,118990.0,118980.0,0.06144926]
[1752694280944,0.7895337,118990.0,118980.0,0.22943736]
[1752694281240,1.20624474,118990.0,118980.0,0.22943736]
[1752694281443,0.7895337,118990.0,118980.0,0.22943736]
[1752694281636,1.20624474,118990.0,118980.0,0.23418736]
[1752694282135,1.20624474,118990.0,118980.0,0.06619926]
[1752694282736,1.20624474,118990.0,118980.0,0.23418736]
[1752694282937,1.20680474,118990.0,118980.0,0.23418736]
[1752694283337,0.58768474,118990.0,118980.0,0.23418736]
[1752694283552,1.20644474,118990.0,118980.0,0.23418736]
[1752694284737,1.20648474,118990.0,118980.0,0.27924143]
[1752694286531,0.58772474,118990.0,118980.0,0.27924143]
[1752694286735,1.20584474,118990.0,118980.0,0.27924143]
[1752694287439,1.20584474,118990.0,118980.0,0.23418736]
[1752694288236,1.20584474,118990.0,118980.0,0.29685143]
[1752694288433,0.58772474,118990.0,118980.0,0.12886333]
[1752694288638,1.20588474,118990.0,118980.0,0.11125333]
[1752694289145,1.20588474,118990.0,118980.0,0.06619926]
[1752694289844,1.20588474,118990.0,118980.0,0.23418736]
[1752694290744,0.7891737,118990.0,118980.0,0.23418736]
[1752694290947,1.14524912,118990.0,118980.0,0.23418736]
[1752694291146,0.35911542,118990.0,118980.0,0.26707736]
[1752694291341,1.14524952,118990.0,118980.0,0.26707736]
[1752694291750,0.7891741,118990.0,118980.0,0.26707736]
[1752694291939,1.14524952,118990.0,118980.0,0.26707736]
[1752694292139,1.14524952,118990.0,118980.0,0.08636]
[1752694292350,1.14524952,118990.0,118980.0,0.2543483]
[1752694292546,1.14524952,118990.0,118980.0,0.26741501]
[1752694292748,0.1710141,118990.0,118980.0,0.26741501]
[1752694293041,1.14556952,118990.0,118980.0,0.2543483]
[1752694293248,1.14552952,118990.0,118980.0,0.2543483]
[1752694293448,0.52408952,118990.0,118980.0,0.29940237]
[1752694293645,1.14460952,118990.0,118980.0,0.29940237]
[1752694293849,0.52608952,118990.0,118980.0,0.29940237]
[1752694294049,1.14460952,118990.0,118980.0,0.29940237]
[1752694295051,0.7885341,118990.0,118980.0,0.29940237]
[1752694295253,1.14452952,118990.0,118980.0,0.29940237]
[1752694296048,0.52608952,118990.0,118980.0,0.29940237]
[1752694296253,0.52608952,118990.0,118980.0,0.2543483]
[1752694296445,0.7879341,118990.0,118980.0,0.2543483]
[1752694296645,1.14400952,118990.0,118980.0,0.2543483]